Cogmind - Beta 14 @@@ ROGUE MODE // 2024.11.24 @ 15:17:32 Player: Fangrelle Result: Destroyed by KO-FTL(R) with Subdweller Laser Performance ------------- Evolutions (0) 0 Regions Visited (3) 600 Robots Destroyed (23) 115 Value Destroyed (677) 677 Prototype IDs (0) 0 Alien Tech Used (0) 0 Bonus (-9) -9 TOTAL SCORE: 1383 Bonus ------- Follower Combat Kills 60 Friendly Fire -69 Cogmind --------- Core Integrity 0/250 Matter 290/300 Energy 265/265 System Corruption 0% Temperature Cool (6) Movement Core (300) Ox5 Location -10/Subcaves Parts ------- > --- POWER (1) -------- Improved Ion Engine > --- PROPULSION (2) --- Light Treads > --- UTILITY (2) ------ Makeshift Light Armor Plating Makeshift Light Armor Plating > --- WEAPON (2) ------- Ripper > --- INVENTORY (5) ---- EM Pulse Gun Barrage Gun Mining Laser Peak State ------------ > --- POWER ------------ Improved Ion Engine > --- PROPULSION ------- Light Treads Makeshift Leg > --- UTILITY ---------- Scrap Shield > --- WEAPON ----------- Battle Rifle Ripper > --- INVENTORY -------- Makeshift Light Armor Plating Makeshift Light Armor Plating EM Pulse Gun Barrage Gun Mining Laser [Rating: 18] Favorites ----------- Power Improved Ion Engine Engine Improved Ion Engine Power Core Light Nuclear Core Propulsion Light Treads Treads Light Treads Leg Makeshift Leg Utility Scrap Shield Storage Small Storage Unit Processor Signal Interpreter Protection Scrap Shield Weapon Battle Rifle Energy Gun EM Pulse Gun Ballistic Gun Battle Rifle Launcher Grenade Launcher Special Weapon Mining Laser Slashing Weapon Ripper Build | -11 -10 -10 -10 ------- Run | Yrd Mat Min Sub Slots Evolved . | . . . . Power . | . . . . Propulsion . | . . . . Utility . | . . . . Weapon . | . . . . Parts Attached 24 | . 7 2 15 Power 4 | . 2 . 2 Engine 3 | . 1 . 2 Core 1 | . 1 . . Reactor . | . . . . Propulsion 6 | . 4 . 2 Treads 5 | . 4 . 1 Leg 1 | . . . 1 Wheel . | . . . . Hover . | . . . . Flight . | . . . . Utility 6 | . 1 1 4 Device . | . . . . Storage . | . . . . Processor 1 | . 1 . . Hackware . | . . . . Protection 5 | . . 1 4 Artifact . | . . . . Weapon 8 | . . 1 7 Energy Gun 1 | . . . 1 Energy Cannon . | . . . . Ballistic Gun 3 | . . . 3 Ballistic Cannon . | . . . . Launcher 2 | . . 1 1 Special Weapon 1 | . . . 1 Impact Weapon . | . . . . Slashing Weapon 1 | . . . 1 Piercing Weapon . | . . . . Special Melee Weapon . | . . . . Unidentified Prototypes . | . . . . Parts Lost 8 | . . . 8 Power 2 | . . . 2 Propulsion 2 | . . . 2 Utility 1 | . . . 1 Weapon 3 | . . . 3 Highest Loss Streak 2 | . . . 2 To Critical Strikes . | . . . . Average Slot Usage (%) 86 | . 97 100 83 Engine 11 | . 7 . 12 Core 2 | . 6 14 1 Treads 23 | . 24 28 22 Leg 4 | . 3 . 4 Storage 4 | . 14 14 2 Processor 1 | . 11 10 . Protection 11 | . . 3 13 Ballistic Gun 17 | . 28 24 16 Launcher 2 | . . 3 1 Special Weapon 1 | . . . 1 Slashing Weapon 4 | . . . 5 Peak Build Rating 18 | . 10 10 18 Average Rating 13 | . 7 9 14 On Entrance 8 | 6 6 10 10 Naked Turns . | . . . . Heaviest Build 30 | 11 13 18 30 Greatest Support 40 | 20 40 40 40 Greatest Overweight (x) 6 | . . . 6 Average Overweight (x) . | . . . . Largest Inventory Capacity 8 | . 8 8 8 Average Capacity 5 | . 8 8 5 Most Carried 8 | . 8 8 8 Average Carried 5 | . 6 7 5 Final Capacity 8 | 8 8 8 5 Final Carried 8 | 6 8 8 3 Class Distribution -------------------- 65% | Mutant 34% | Derelict-Mutant Dominant Class ---------------- Mutant | -10/Materials Mutant | -10/Mines Mutant | -10/Subcaves Resources | -11 -10 -10 -10 ----------- Run | Yrd Mat Min Sub Matter Collected 773 | 200 65 38 470 Remotely . | . . . . Salvage Created 654 | . 101 . 553 Parts 50 | . 10 . 40 Haulers Intercepted . | . . . . Recyclers Shooed . | . . . . Parts Field Recycled . | . . . . Retrieved Matter . | . . . . Parts Self-Destructed 23 | . . . 23 Prevented . | . . . . Kills | -11 -10 -10 -10 ------- Run | Yrd Mat Min Sub Combat Hostiles Destroyed 21 | . 2 . 19 Melee 4 | . . . 4 Guns 11 | . 2 . 9 AOE 6 | . . . 6 Classes Destroyed 6 | . 2 . 4 Watcher 1 | . 1 . . Swarmer 6 | . . . 6 Grunt 5 | . 2 . 3 Sentry 1 | . . . 1 Subdweller 9 | . . . 9 Zionite 1 | . . . 1 Best Kill Streak 4 | . 1 . 4 Combat Bots Only 4 | . 1 . 4 Max Kills in Single Turn 2 | . 1 . 2 Gunslinging 1 | . . . 1 Exploded 1 | . . . 1 Melee 1 | . . . 1 Uniques/NPCs Destroyed . | . . . . Combat | -11 -10 -10 -10 -------- Run | Yrd Mat Min Sub Hostile Shots Fired 174 | . 19 . 155 Missed 51 | . 4 . 47 Damage Taken 1835 | . 189 7 1639 Core 250 | . 34 . 216 Absorbed by Shields . | . . . . Core Remaining (%) 100 | 100 . . . Volleys Fired 112 | . 28 . 84 Largest 2 | . 2 . 2 Hottest 100 | . 40 . 100 Shots Fired 171 | . 56 . 115 Gun 133 | . 56 . 77 Cannon . | . . . . Launcher 12 | . . . 12 Special 26 | . . . 26 Kinetic 133 | . 56 . 77 Thermal 26 | . . . 26 Explosive 12 | . . . 12 Electromagnetic . | . . . . Robot Hit Streak 10 | . 9 . 10 Robot Miss Streak 2 | . 2 . 2 Penetration Max . | . . . . Secondary Targets 2 | . . . 2 Max Gunslinging Chain 1 | . . . 1 Shots Hit Robots 108 | . 24 . 84 Core Hits 37 | . 7 . 30 Critical Kills 1 | . . . 1 Critical Parts Destroyed 1 | . 1 . . Critical Strikes 3 | . 1 . 2 Destroy 2 | . 1 . 1 Sever 1 | . . . 1 Melee Attacks 42 | . . . 42 Impact . | . . . . Slashing 42 | . . . 42 Piercing . | . . . . Sneak Attacks 1 | . . . 1 Combat Hostiles . | . . . . Follow-up Attacks . | . . . . Damage Inflicted 2265 | . 249 . 2016 Guns 812 | . 249 . 563 Cannons . | . . . . Explosions 711 | . . . 711 Melee 742 | . . . 742 Ramming . | . . . . Kinetic 812 | . 249 . 563 Thermal . | . . . . Explosive 711 | . . . 711 Electromagnetic . | . . . . Impact . | . . . . Slashing 742 | . . . 742 Piercing . | . . . . Highest Corruption . | . . . . Average Corruption . | . . . . Corruption Purged . | . . . . Corruption Blocked . | . . . . Overload Shots . | . . . . Overflow Damage 28 | . . . 28 Projectiles . | . . . . Explosions . | . . . . Melee 28 | . . . 28 Knockbacks . | . . . . Impact . | . . . . Kinetic . | . . . . Secondary . | . . . . Self-Inflicted Damage . | . . . . Shots . | . . . . Rammed . | . . . . Targets Rammed . | . . . . Kicked . | . . . . Crushed . | . . . . Highest Temperature 12 | . 12 . 2 Average Temperature 6 | . 7 . 2 Received Heat Transfer 459 | . 105 . 354 Siege Activations . | . . . . Robots Corrupted . | . . . . Combat Hostiles . | . . . . Parts Fried . | . . . . Impact Corruptions . | . . . . Robots Melted . | . . . . Combat Hostiles . | . . . . Parts Melted . | . . . . Heat Transferred . | . . . . Parts Sabotaged . | . . . . Parts Stolen . | . . . . Parts Stripped . | . . . . Power Chain Reactions . | . . . . Alert | -11 -10 -10 -10 ------- Run | Yrd Mat Min Sub Peak Influence 102 | . 102 39 . Initial 39 | . . 39 . Average 40 | . 63 26 . Maximum Alert Level . | . . . . Low Security (%) 100 | . 100 100 . Level 1 . | . . . . Level 2 . | . . . . Level 3 . | . . . . Level 4 . | . . . . Level 5 . | . . . . High Security . | . . . . Max Security . | . . . . Squads Dispatched 1 | . 1 . . Investigation 1 | . 1 . . Extermination . | . . . . Reinforcement . | . . . . Assault . | . . . . Garrison . | . . . . Intercept . | . . . . Searches Triggered . | . . . . Construction Impeded . | . . . . Haulers Reinforced . | . . . . Active Scanning Responses . | . . . . Cargo Convoy Interrupts . | . . . . Stealth | -11 -10 -10 -10 --------- Run | Yrd Mat Min Sub Distress Signals 1 | . 1 . . Communications Jammed . | . . . . Distress Signals . | . . . . Times Spotted 30 | . 5 . 25 Peak Tracking Total 4 | . 4 . 4 Tactical Retreats 3 | . 1 . 2 Traps | -11 -10 -10 -10 ------- Run | Yrd Mat Min Sub Traps Triggered 1 | . 1 . . Indirectly . | . . . . Trap Hack Attempts . | . . . . Triggered . | . . . . Disarmed . | . . . . Reprogrammed . | . . . . Reused . | . . . . Traps Extracted . | . . . . Installed . | . . . . Triggered . | . . . . Machines | -11 -10 -10 -10 ---------- Run | Yrd Mat Min Sub Machines Disabled . | . . . . Max in Single Turn . | . . . . Machines Repaired . | . . . . Machines Dismantled . | . . . . Machines Sabotaged . | . . . . Overloaded Fab Kills . | . . . . Hacking | -11 -10 -10 -10 --------- Run | Yrd Mat Min Sub Machines Accessed 3 | . 1 1 1 Terminals 1 | . 1 . . Fabricators . | . . . . Repair Stations . | . . . . Recycling Units . | . . . . Scanalyzers . | . . . . Garrison Access . | . . . . Total Hacks 7 | . 1 1 5 Successful 6 | . . 1 5 Failed 1 | . 1 . . Catastrophic . | . . . . Database Lockouts . | . . . . Manual 1 | . 1 . . Terminals 1 | . 1 . . Fabricators . | . . . . Repair Stations . | . . . . Recycling Units . | . . . . Scanalyzers . | . . . . Garrison Access . | . . . . Terminal Hacks 6 | . . 1 5 Record 5 | . . . 5 Open Door 1 | . . 1 . Fabricator Hacks . | . . . . Repair Station Hacks . | . . . . Recycling Unit Hacks . | . . . . Scanalyzer . | . . . . Garrison Access Hacks . | . . . . Unauthorized Hacks . | . . . . Terminals . | . . . . Fabricators . | . . . . Repair Stations . | . . . . Recycling Units . | . . . . Scanalyzers . | . . . . Garrison Access . | . . . . Data Cores Recovered . | . . . . Used . | . . . . Hacking Detections 1 | . 1 . . Full Trace Events . | . . . . Feedback Events . | . . . . Feedback Blocked . | . . . . Robot Schematics Acquired . | . . . . Robots Built . | . . . . Authchips . | . . . . Time . | . . . . Total Robot Build Rating . | . . . . Part Schematics Acquired . | . . . . Parts Built . | . . . . Authchips . | . . . . Time . | . . . . Total Part Build Rating . | . . . . Parts Repaired . | . . . . Time . | . . . . Parts Recycled . | . . . . Recycled Matter . | . . . . Retrieved Matter . | . . . . Retrieved Components . | . . . . Parts Scanalyzed . | . . . . Part Schematics Acquired . | . . . . Parts Damaged . | . . . . Bothacking | -11 -10 -10 -10 ------------ Run | Yrd Mat Min Sub Used RIF Installer . | . . . . Robots Hacked . | . . . . Non-combat . | . . . . Combat . | . . . . Robot Hacks Applied . | . . . . Relay Couplers Released . | . . . . Fabnet Peak Effective % . | . . . . Robots Rewired . | . . . . Allies Hacked . | . . . . Hacks Repelled . | . . . . Allies | -11 -10 -10 -10 -------- Run | Yrd Mat Min Sub Total Allies 2 | . . 2 . Largest Group 2 | . . 2 2 Highest-Rated Group 49 | . . 45 49 Highest-Rated Ally 31 | . . 31 31 Total Orders . | . . . . Ally Attacks 8 | . . . 8 Total Damage 125 | . . . 125 Kills 2 | . . . 2 Allies Corrupted . | . . . . Allies Melted . | . . . . Intel | -11 -10 -10 -10 ------- Run | Yrd Mat Min Sub Robot Analysis Total . | . . . . Derelict Logs Recovered 4 | . . 2 2 Drone Launches . | . . . . Drone Recoveries . | . . . . Exploration | -11 -10 -10 -10 ------------- Run | Yrd Mat Min Sub Turns Passed 5350 | . 339 589 4422 Spaces Moved 2814 | 1 160 358 2295 Core 1 | . . . 1 Treads 2098 | . 129 358 1611 Legs 715 | 1 31 . 683 Wheels . | . . . . Hover . | . . . . Flight . | . . . . Fastest Speed 120 | 120 120 160 140 Average Speed 171 | 120 152 160 175 Slowest Speed 350 | 120 160 160 350 Overloaded Moves . | . . . . Propulsion Burnouts . | . . . . Robots Hopped . | . . . . Cave-ins Triggered . | . . . . Exploration Rate (%) 42 | 2 31 52 83 Regions Visited 3 Branch Regions 2 Pre-discovered Areas 4 | . . 2 2 Known Exits Taken 1 | . 1 . . Unknown Exits Taken 2 | 1 . 1 . Scrap Searched 7 | . . 1 6 Spaces Dug . | . . . . Terrain Destroyed 65 | . . . 65 Melee . | . . . . Projectile . | . . . . AOE 65 | . . . 65 Terrain Rammed . | . . . . Walls Destroyed . | . . . . Machines Disabled . | . . . . Actions | -11 -10 -10 -10 --------- Run | Yrd Mat Min Sub Total 3068 | . 207 375 2486 Wait 37 | . . 12 25 Move 2811 | . 159 357 2295 Hop . | . . . . Pick Up 14 | . 6 1 7 Fast Attach 9 | . 2 2 5 Attach 7 | . 2 . 5 Detach . | . . . . Swap 8 | . 3 . 5 Drop 21 | . 7 3 11 Fire 112 | . 28 . 84 Melee 42 | . . . 42 Ram . | . . . . Kick . | . . . . Crush . | . . . . Escape Stasis . | . . . . Rewire . | . . . . Trap . | . . . . Miscellaneous 7 | . . . 7 Route ------- -11/Scrapyard -10/Materials -10/Mines (discovered 2 exits: [*Mat] / *Sub) -10/Subcaves (discovered 2 exits: [*Mat] / [*Rec]) History --------- Turn | Location | Event 1 | -11/Scrapyard | Discovered new exit (range 0) 1 | -11/Scrapyard | Entered Materials 299 | -10/Materials | Discovered new exit (range 16) 324 | -10/Materials | Identified exit to Mines 328 | -10/Materials | Build established: Mutant 340 | -10/Materials | Entered Mines 341 | -10/Mines | Learned location of Storage (-9) 504 | -10/Mines | Learned Materials interactive machine intel 564 | -10/Mines | Learned location of Mines (-8) 639 | -10/Mines | Met a Derelict who couldn't figure out how to use a Trap Extractor 766 | -10/Mines | Discovered new exit (range 9) 898 | -10/Mines | Discovered new exit (range 8) 929 | -10/Mines | Entered Subcaves 929 | -10/Subcaves | Accompanied by 2 allies 934 | -10/Subcaves | Led the pair of lost Derelicts to an unsafe place 1132 | -10/Subcaves | Discovered new exit (range 5) 1174 | -10/Subcaves | Ambushed by angry Subdweller bent on revenge 1219 | -10/Subcaves | Learned location of Zion (-6) 1219 | -10/Subcaves | Met a Zionite searching for "candidates" 1251 | -10/Subcaves | Learned 4 Materials zone layouts 1310 | -10/Subcaves | Visited Clippyterm 1315 | -10/Subcaves | Learned 40 Factory zone layouts 1315 | -10/Subcaves | Learned Factory stockpile data 1350 | -10/Subcaves | Discovered new exit (range 15) 1458 | -10/Subcaves | Shifting Twisted Machinery released Sub. Machine Gun 1461 | -10/Subcaves | Shifting Twisted Machinery released Sub. Power Source 1629 | -10/Subcaves | Core integrity fell below 50% 2474 | -10/Subcaves | Shifting Twisted Machinery released Sub. Optics 2790 | -10/Subcaves | Shifting Twisted Machinery released Battle Rifle 2791 | -10/Subcaves | Shifting Twisted Machinery released Sub. Machine Gun 2795 | -10/Subcaves | A swath of the cavern ceiling suddenly collapsed 3323 | -10/Subcaves | Shifting Twisted Machinery released Sub. Laser 4099 | -10/Subcaves | Build established: Derelict-Mutant 5333 | -10/Subcaves | Core integrity fell below 20% 5351 | -10/Subcaves | Destroyed by KO-FTL(R) with Subdweller Laser Last Messages --------------- 04334_ G-47 Trooper destroyed. 04344_ Imp. Heat Sink fries itself beyond repair. 04347_ Lgt. Nuclear Core fries itself beyond repair. 04353_ Destroyed Aluminum Leg. 04353_ G-34 Mercenary destroyed. 04364_ Heat Sink fries itself beyond repair. 04389_ Scrap Shield Fragment affixed to Scrap Shield (+33). 04960_ A3-81Q(R) destroyed. 04964_ Subatomizers dissect the Disposable Heat Sink. 05127_ UN-9D2(u) tweaks Twisted Machinery. 05209_ Sneak attack on UN-9D2(u). 05292_ 6K-48P(R) Sub. Laser severed. 05295_ Subatomizers dissect the Sub. Laser. 05322_ Dropped Scrap Shield. 05328_ Mak. Leg destroyed. 05332_ Subatomizers dissect the Sub. Laser. 05336_ Destroyed Scrap Shield. 05339_ Battle Rifle destroyed. 05342_ Subatomizers dissect the Sub. Laser. 05342_ UN-9D2(u) tweaks Twisted Machinery. Map ----- +----------------------------------------------------+ | ?????????????????????????????????????????????????? | | ?????????????????????????????????????????????????? | | ?????????????????????????????????????????????????? | | ?????????????????????????????????????????????????? | | ?????????????????????????????????????????????????? | | ?????????????????????????????????????????????????? | | ?????????????????????????????????????????????????? | | ?????????????????????????????????????????????????? | | ?????????????????????????????????????????????????? | | ?????????????????????????????????????????????????? | | ?????????????????????????????????????????????????? | | ?????????????????????????????????????????????????? | | ?????????????????????????????????????????????????? | | ?????????????????????????????????????????????????? | | ?????????????????????????????????????????????????? | | ?????????????????????????????????????????????????? | | ?????????????????????????????????????????????????? | | ?????????????????????????????????????????????????? | | ?????????????????????????????????????????????????? | | ????????????????????????????#####????????????? ? # | | ????????????????????????????#" "###???????? # | | ????????????????????????????# %"" #????????" " | | ????????????????????????????# "" ##?????? "" " | | ????????? ????#??######### "" ##?????? "" | | ????????? ## ## "# R""u" % ###???? | | ???????? " @" "" ## #????# % | | ????????? " % ## #????# | | ???????????? # ! ""#"""### ####### | | ????????????????# ##### "##"##?#"" #?# """ | | ????????????????#??????# ####### " ### """"" | | ???????????????????????# " #"## " " "" | | ??????????????????????## "" """"" " % | | ??????????????????????# [ "" """" | | ??????????????????????# # ## ### # ## #### | | ?????????????????????" # ####?## ######??# | | ???????????????????? ### ?????#### #??????# | | ??????????????????? ??## ???????## #????## | | ??????????????????## ?????# ???????# #?????## | | ??????????????????? ?????? ???????# ##??????? | | ?????????????????? ??????? #??????### ##???????? | | ????????????????? ????????? #?????????##????????? | | ???????????????? ????????? #???????????????????? | | ??????????????? ??????????##???????????????????? | | ?????????????? ????????????????????????????????? | | ?????????????????????????????????????????????????? | | ?????????????????????????????????????????????????? | | ?????????????????????????????????????????????????? | | ?????????????????????????????????????????????????? | | ?????????????????????????????????????????????????? | | ?????????????????????????????????????????????????? | +----------------------------------------------------+ Best States ------------- Heat Dissipation 25 Energy Generation 15 Energy Capacity 265 Matter Stores 300 Matter Capacity 300 Sight Range 16 Terrain Scan Density 10 Armor Coverage 800 Evasion (%) 55 Recoil Reduction 2 Item Schematics ----------------- None Robot Schematics ------------------ None Fabricated ------------ Nothing Alien Tech Used ----------------- None Achievements -------------- None Challenges ------------ None Game ------ Seed StorageNodeProtection Manual? 0 Play Time 00:19:24 Cumulative 133.7 hours Start 2024.11.24 @ 15:02:43 End 2024.11.24 @ 15:17:32 Sessions 1 Manual Loads 0 Difficulty Rogue Special Mode None Game No. 254 Rogue 254 Adventurer 0 Explorer 0 Win Type - Total 0 Types 0/0/0/0/0/0/0/0/0 Lore% 43 Gallery% 41 Achievement% 36 Wizard Run 0 Options --------- Layout 0 ASCII 0 Keyboard 0 Movement Mouse Keybinds 0 Fullscreen 1 Font 24/Smallcaps Map View 91x25 Zoom Use 94% Tactical HUD 1 Map Filters NONE Filters NONE Steam 1 RUN: fd36c2f1-9d60-42a3-81cc-774f86b5e371